[Event "*** Titled Tuesday Blitz"]
[Site "Chess.com"]
[Date "2020.11.24"]
[Round "1"]
[White "Durarbayli"]
[Black "Loy_Konstantin"]
[Result "1-0"]
[WhiteElo "2762"]
[BlackElo "2395"]
[TimeControl "180+1"]
[EndTime "10:21:20 PST"]
[Termination "Durarbayli won by resignation"]

1. e4 {[%clk 0:03:00.9]} 1... c5 {[%clk 0:02:59.3]} 2. b3 {[%clk 0:03:00.6]}
2... Nc6 {[%clk 0:02:58.6]} 3. Bb2 {[%clk 0:02:59.9]} 3... d6 {[%clk 0:02:58.9]}
4. Bb5 {[%clk 0:02:56.8]} 4... Bd7 {[%clk 0:02:57.2]} 5. f4 {[%clk 0:02:52.2]}
5... Nf6 {[%clk 0:02:53.6]} 6. Qe2 {[%clk 0:02:49]} 6... a6 {[%clk 0:02:49.9]}
7. Bxc6 {[%clk 0:02:48.1]} 7... Bxc6 {[%clk 0:02:50.8]} 8. d3 {[%clk 0:02:41]}
8... e6 {[%clk 0:02:36.9]} 9. Nd2 {[%clk 0:02:29.3]} 9... Be7 {[%clk 0:02:34.9]}
10. g4 {[%clk 0:02:25.6]} 10... h6 {[%clk 0:02:15.2]} 11. h4 {[%clk 0:02:16.8]}
11... Rg8 {[%clk 0:01:34.8]} 12. g5 {[%clk 0:02:14]} 12... Nd7 {[%clk
0:01:34.2]} 13. Qg4 {[%clk 0:01:58.3]} 13... hxg5 {[%clk 0:01:29.2]} 14. hxg5
{[%clk 0:01:59.2]} 14... Qa5 {[%clk 0:01:24.1]} 15. g6 {[%clk 0:01:47.8]} 15...
Nf6 {[%clk 0:01:02.5]} 16. gxf7+ {[%clk 0:01:47.6]} 16... Kxf7 {[%clk
0:01:01.3]} 17. Qg2 {[%clk 0:01:29.9]} 17... Rh8 {[%clk 0:00:58.6]} 18. Nf3
{[%clk 0:01:29.1]} 18... Rxh1+ {[%clk 0:00:28.3]} 19. Qxh1 {[%clk 0:01:30]}
19... Rg8 {[%clk 0:00:15.2]} 20. Ng5+ {[%clk 0:01:20.8]} 20... Ke8 {[%clk
0:00:15.5]} 21. Nxe6 {[%clk 0:01:21.3]} 21... Bd7 {[%clk 0:00:14.8]} 22. f5
{[%clk 0:01:14.9]} 22... Bxe6 {[%clk 0:00:14.1]} 23. fxe6 {[%clk 0:01:15.8]}
23... Kd8 {[%clk 0:00:13.4]} 24. O-O-O {[%clk 0:01:08.7]} 24... Qxa2 {[%clk
0:00:12.5]} 25. e5 {[%clk 0:01:08.1]} 25... Kc7 {[%clk 0:00:04.6]} 26. exf6
{[%clk 0:00:57.3]} 26... Bxf6 {[%clk 0:00:05.5]} 27. Bxf6 {[%clk 0:00:57.1]}
27... gxf6 {[%clk 0:00:05.7]} 28. Qh7+ {[%clk 0:00:56.8]} 28... Kc6 {[%clk
0:00:05.3]} 29. Qxg8 {[%clk 0:00:55.7]} 29... Qa1+ {[%clk 0:00:05.1]} 30. Nb1
{[%clk 0:00:55.8]} 1-0

[Event "*** Titled Tuesday Blitz"]
[Site "Chess.com"]
[Date "2020.11.24"]
[Round "1"]
[White "hansen"]
[Black "Nadeev_Sergey"]
[Result "1-0"]
[WhiteElo "2932"]
[BlackElo "2455"]
[TimeControl "180+1"]
[EndTime "10:21:21 PST"]
[Termination "hansen won by resignation"]

1. e4 {[%clk 0:02:58.6]} 1... e5 {[%clk 0:02:59.8]} 2. Nf3 {[%clk 0:02:58.5]}
2... Nc6 {[%clk 0:03:00]} 3. Bb5 {[%clk 0:02:58.8]} 3... a6 {[%clk 0:03:00]} 4.
Ba4 {[%clk 0:02:59]} 4... Nf6 {[%clk 0:03:00.4]} 5. O-O {[%clk 0:02:59]} 5...
Be7 {[%clk 0:03:00.8]} 6. Re1 {[%clk 0:02:59.2]} 6... b5 {[%clk 0:03:01.1]} 7.
Bb3 {[%clk 0:02:59.7]} 7... O-O {[%clk 0:03:01.7]} 8. h3 {[%clk 0:02:58.4]} 8...
Bb7 {[%clk 0:03:01.7]} 9. d3 {[%clk 0:02:58.2]} 9... d5 {[%clk 0:03:01.8]} 10.
exd5 {[%clk 0:02:58.6]} 10... Nxd5 {[%clk 0:03:02.2]} 11. a4 {[%clk 0:02:59.3]}
11... Nd4 {[%clk 0:02:49.7]} 12. Nxd4 {[%clk 0:02:58.7]} 12... exd4 {[%clk
0:02:49.5]} 13. Nd2 {[%clk 0:02:59.1]} 13... c5 {[%clk 0:02:43.8]} 14. Nf3
{[%clk 0:02:59.2]} 14... Qc7 {[%clk 0:02:38.9]} 15. Qe2 {[%clk 0:02:50.7]} 15...
Bf6 {[%clk 0:02:37.5]} 16. axb5 {[%clk 0:02:43.8]} 16... axb5 {[%clk 0:02:37.2]}
17. Rxa8 {[%clk 0:02:44.7]} 17... Bxa8 {[%clk 0:02:38]} 18. Ng5 {[%clk
0:02:44.8]} 18... Bc6 {[%clk 0:02:21.6]} 19. Nxh7 {[%clk 0:02:33.4]} 19... Kxh7
{[%clk 0:02:18.6]} 20. Qh5+ {[%clk 0:02:31.9]} 20... Kg8 {[%clk 0:02:17.7]} 21.
Bxd5 {[%clk 0:02:32.7]} 21... Bxd5 {[%clk 0:02:07]} 22. Qxd5 {[%clk 0:02:32.6]}
22... Rd8 {[%clk 0:02:07.7]} 23. Qf5 {[%clk 0:02:29.7]} 23... c4 {[%clk
0:02:05.9]} 24. Qxb5 {[%clk 0:02:28.5]} 24... cxd3 {[%clk 0:02:05.8]} 25. Re8+
{[%clk 0:02:23]} 25... Rxe8 {[%clk 0:02:05.9]} 26. Qxe8+ {[%clk 0:02:22.9]}
26... Kh7 {[%clk 0:02:06.6]} 27. Qe4+ {[%clk 0:02:22.5]} 27... Kg8 {[%clk
0:02:07.3]} 28. Qxd3 {[%clk 0:02:22.1]} 28... Qa5 {[%clk 0:02:04.9]} 29. b3
{[%clk 0:01:28.8]} 29... Be5 {[%clk 0:01:48.9]} 30. g3 {[%clk 0:01:22.2]} 30...
Qe1+ {[%clk 0:01:47.6]} 31. Qf1 {[%clk 0:01:21.3]} 31... Qe4 {[%clk 0:01:48.2]}
32. Qd1 {[%clk 0:01:19.2]} 32... f5 {[%clk 0:01:33.1]} 33. b4 {[%clk 0:01:17.4]}
33... f4 {[%clk 0:01:32.8]} 34. Bxf4 {[%clk 0:01:10.5]} 34... Bxf4 {[%clk
0:01:33.1]} 35. gxf4 {[%clk 0:01:11.4]} 35... Qxf4 {[%clk 0:01:33.9]} 36. Qg4
{[%clk 0:01:05.3]} 36... Qd2 {[%clk 0:01:17]} 37. Qe6+ {[%clk 0:00:59.2]} 37...
Kf8 {[%clk 0:01:13.2]} 38. Qf5+ {[%clk 0:00:59.3]} 38... Kg8 {[%clk 0:01:13.4]}
39. b5 {[%clk 0:00:59.4]} 39... Qb4 {[%clk 0:01:11.8]} 40. Qd5+ {[%clk
0:00:53.8]} 40... Kh8 {[%clk 0:01:11.5]} 41. Qc6 {[%clk 0:00:51.4]} 41... Qd2
{[%clk 0:01:01.8]} 42. Qc8+ {[%clk 0:00:46.3]} 42... Kh7 {[%clk 0:01:01.9]} 43.
Qf5+ {[%clk 0:00:46.9]} 43... Kh8 {[%clk 0:01:00.4]} 44. b6 {[%clk 0:00:44.9]}
44... Qe1+ {[%clk 0:00:51.9]} 45. Kg2 {[%clk 0:00:44.7]} 45... Qb4 {[%clk
0:00:52.6]} 46. Qc8+ {[%clk 0:00:43.1]} 46... Kh7 {[%clk 0:00:52.9]} 47. b7
{[%clk 0:00:43.8]} 1-0

[Event "*** Titled Tuesday Blitz"]
[Site "Chess.com"]
[Date "2020.11.24"]
[Round "1"]
[White "Tenamu"]
[Black "MatyChess1"]
[Result "0-1"]
[WhiteElo "2308"]
[BlackElo "2606"]
[TimeControl "180+1"]
[EndTime "10:21:21 PST"]
[Termination "MatyChess1 won by checkmate"]

1. d4 {[%clk 0:02:59.7]} 1... d5 {[%clk 0:03:00.9]} 2. Nc3 {[%clk 0:02:59.8]}
2... Nf6 {[%clk 0:02:50.8]} 3. Bf4 {[%clk 0:03:00.2]} 3... a6 {[%clk 0:02:49.9]}
4. e3 {[%clk 0:02:59.9]} 4... Bf5 {[%clk 0:02:46.6]} 5. f3 {[%clk 0:02:59.4]}
5... e6 {[%clk 0:02:41.3]} 6. g4 {[%clk 0:02:59.8]} 6... Bg6 {[%clk 0:02:41.6]}
7. h4 {[%clk 0:03:00.7]} 7... h5 {[%clk 0:02:42.2]} 8. g5 {[%clk 0:03:01]} 8...
Nfd7 {[%clk 0:02:42.5]} 9. Bd3 {[%clk 0:03:01]} 9... Bxd3 {[%clk 0:02:38.8]} 10.
Qxd3 {[%clk 0:03:01.9]} 10... c5 {[%clk 0:02:36.5]} 11. Nge2 {[%clk 0:03:01.1]}
11... Nc6 {[%clk 0:02:33.8]} 12. O-O-O {[%clk 0:03:01.4]} 12... Qa5 {[%clk
0:02:24.8]} 13. Qd2 {[%clk 0:02:55.7]} 13... cxd4 {[%clk 0:02:20]} 14. exd4
{[%clk 0:02:56.6]} 14... Bb4 {[%clk 0:02:15.6]} 15. a3 {[%clk 0:02:55.3]} 15...
Bxa3 {[%clk 0:01:47.5]} 16. bxa3 {[%clk 0:02:54.9]} 16... Qxa3+ {[%clk
0:01:48.4]} 17. Kb1 {[%clk 0:02:55.2]} 17... Nb6 {[%clk 0:01:35]} 18. Na2 {[%clk
0:02:46]} 18... Na4 {[%clk 0:01:29.8]} 19. Qc1 {[%clk 0:02:40.1]} 19... Qe7
{[%clk 0:01:23.4]} 20. Nec3 {[%clk 0:02:35.3]} 20... Nb6 {[%clk 0:01:20.5]} 21.
Rhe1 {[%clk 0:02:29.6]} 21... Na5 {[%clk 0:01:13.7]} 22. g6 {[%clk 0:02:23.7]}
22... f6 {[%clk 0:01:07.5]} 23. Qb2 {[%clk 0:02:16.8]} 23... Nac4 {[%clk
0:00:51.5]} 24. Qb4 {[%clk 0:02:13.9]} 24... Qd7 {[%clk 0:00:41.2]} 25. Nc1
{[%clk 0:02:06.5]} 25... a5 {[%clk 0:00:34.3]} 26. Qb3 {[%clk 0:01:51.3]} 26...
O-O {[%clk 0:00:33.7]} 27. Nd3 {[%clk 0:01:44.2]} 27... Rfe8 {[%clk 0:00:25.8]}
28. Ka1 {[%clk 0:01:39.2]} 28... Rac8 {[%clk 0:00:16.6]} 29. Nc5 {[%clk
0:01:38.3]} 29... Qc6 {[%clk 0:00:15.1]} 30. Qb5 {[%clk 0:01:36.4]} 30... e5
{[%clk 0:00:15.6]} 31. Qxc6 {[%clk 0:01:34.7]} 31... Rxc6 {[%clk 0:00:15]} 32.
Bg3 {[%clk 0:01:33.6]} 32... Na3 {[%clk 0:00:10]} 33. Kb2 {[%clk 0:01:17.4]}
33... Nbc4+ {[%clk 0:00:08.1]} 34. Kb3 {[%clk 0:01:15.5]} 34... Rb6+ {[%clk
0:00:07.3]} 35. Ka4 {[%clk 0:01:04.9]} 35... Rb4# {[%clk 0:00:07]} 0-1

[Event "*** Titled Tuesday Blitz"]
[Site "Chess.com"]
[Date "2020.11.24"]
[Round "1"]
[White "NewBornNow"]
[Black "Trickov"]
[Result "1-0"]
[WhiteElo "2703"]
[BlackElo "2371"]
[TimeControl "180+1"]
[EndTime "10:21:22 PST"]
[Termination "NewBornNow won by resignation"]

1. e4 {[%clk 0:02:59.1]} 1... c5 {[%clk 0:02:59]} 2. Nf3 {[%clk 0:02:58.6]} 2...
d6 {[%clk 0:02:56.6]} 3. d4 {[%clk 0:02:58.4]} 3... Nf6 {[%clk 0:02:56.7]} 4.
Nc3 {[%clk 0:02:57.5]} 4... cxd4 {[%clk 0:02:56.2]} 5. Nxd4 {[%clk 0:02:57.5]}
5... a6 {[%clk 0:02:55.7]} 6. Be3 {[%clk 0:02:57.7]} 6... e5 {[%clk 0:02:55.1]}
7. Nf3 {[%clk 0:02:58.1]} 7... Qc7 {[%clk 0:02:54.2]} 8. a4 {[%clk 0:02:58]}
8... h6 {[%clk 0:02:52.9]} 9. a5 {[%clk 0:02:56.7]} 9... Be6 {[%clk 0:02:53]}
10. Be2 {[%clk 0:02:55.5]} 10... Nbd7 {[%clk 0:02:53]} 11. O-O {[%clk
0:02:55.2]} 11... Rc8 {[%clk 0:02:52.4]} 12. Nd5 {[%clk 0:02:52.3]} 12... Bxd5
{[%clk 0:02:51.7]} 13. exd5 {[%clk 0:02:52.4]} 13... g6 {[%clk 0:02:51.7]} 14.
c4 {[%clk 0:02:52.1]} 14... Bg7 {[%clk 0:02:51.7]} 15. b4 {[%clk 0:02:51.5]}
15... O-O {[%clk 0:02:50.9]} 16. Rc1 {[%clk 0:02:51.1]} 16... Ng4 {[%clk
0:02:49.8]} 17. Bd2 {[%clk 0:02:47.5]} 17... e4 {[%clk 0:02:41.3]} 18. Ne1
{[%clk 0:02:44.4]} 18... Nge5 {[%clk 0:02:38.8]} 19. Nc2 {[%clk 0:02:39.8]}
19... f5 {[%clk 0:02:30.5]} 20. Nd4 {[%clk 0:02:37]} 20... Rfe8 {[%clk 0:01:39]}
21. Ne6 {[%clk 0:02:35.1]} 21... Qb8 {[%clk 0:01:38.4]} 22. f4 {[%clk
0:02:29.7]} 22... exf3 {[%clk 0:01:36.4]} 23. gxf3 {[%clk 0:02:29.2]} 23... Nf8
{[%clk 0:01:33.5]} 24. Nxg7 {[%clk 0:02:27.8]} 24... Kxg7 {[%clk 0:01:32.5]} 25.
f4 {[%clk 0:02:22.6]} 25... Ned7 {[%clk 0:01:24.2]} 26. Bc3+ {[%clk 0:02:21.4]}
26... Nf6 {[%clk 0:01:22.1]} 27. Qd4 {[%clk 0:02:14.4]} 27... Nd7 {[%clk
0:01:20.1]} 28. Bf3 {[%clk 0:02:12.6]} 28... b6 {[%clk 0:01:10]} 29. Rfe1 {[%clk
0:02:07.7]} 29... bxa5 {[%clk 0:01:05.6]} 30. Re6 {[%clk 0:01:55.6]} 30... Rf8
{[%clk 0:00:49.7]} 31. bxa5 {[%clk 0:01:43.7]} 31... Qb3 {[%clk 0:00:37.8]} 32.
Rxd6 {[%clk 0:01:28.9]} 32... Kf7 {[%clk 0:00:13.9]} 33. Rxf6+ {[%clk
0:01:21.6]} 33... Nxf6 {[%clk 0:00:06.1]} 34. Qxf6+ {[%clk 0:01:20.7]} 34... Ke8
{[%clk 0:00:06.7]} 35. Re1+ {[%clk 0:01:18.5]} 1-0

[Event "*** Titled Tuesday Blitz"]
[Site "Chess.com"]
[Date "2020.11.24"]
[Round "1"]
[White "OMGCovid-19"]
[Black "TrickyFortem"]
[Result "0-1"]
[WhiteElo "1825"]
[BlackElo "2470"]
[TimeControl "180+1"]
[EndTime "10:21:24 PST"]
[Termination "TrickyFortem won on time"]

1. e4 {[%clk 0:02:58.8]} 1... c5 {[%clk 0:03:00]} 2. Nc3 {[%clk 0:02:41.5]} 2...
Nc6 {[%clk 0:02:58.5]} 3. Bc4 {[%clk 0:02:41.6]} 3... e6 {[%clk 0:02:56.9]} 4.
f4 {[%clk 0:02:40.9]} 4... Be7 {[%clk 0:02:51.2]} 5. Nf3 {[%clk 0:02:41]} 5...
a6 {[%clk 0:02:49.8]} 6. a4 {[%clk 0:02:39.4]} 6... Nf6 {[%clk 0:02:49.5]} 7.
O-O {[%clk 0:02:36.7]} 7... Nxe4 {[%clk 0:02:47.8]} 8. Nxe4 {[%clk 0:02:35.3]}
8... d5 {[%clk 0:02:46.2]} 9. Neg5 {[%clk 0:02:26]} 9... dxc4 {[%clk 0:02:44.5]}
10. Qe2 {[%clk 0:02:16.3]} 10... h6 {[%clk 0:02:37.2]} 11. Ne4 {[%clk
0:02:13.4]} 11... Nd4 {[%clk 0:02:35.5]} 12. Qxc4 {[%clk 0:02:03.4]} 12... Nxf3+
{[%clk 0:02:29.1]} 13. Rxf3 {[%clk 0:02:00.6]} 13... Qd5 {[%clk 0:02:29.4]} 14.
Qe2 {[%clk 0:01:52.8]} 14... O-O {[%clk 0:02:27.6]} 15. d3 {[%clk 0:01:52.5]}
15... b6 {[%clk 0:02:26.4]} 16. Bd2 {[%clk 0:01:42.8]} 16... Bb7 {[%clk
0:02:25.3]} 17. Bc3 {[%clk 0:01:29.3]} 17... f5 {[%clk 0:02:25]} 18. Ng3 {[%clk
0:01:22.1]} 18... Bf6 {[%clk 0:02:24.7]} 19. Re3 {[%clk 0:01:07.7]} 19... Rae8
{[%clk 0:02:17.7]} 20. Be5 {[%clk 0:00:55.3]} 20... Bxe5 {[%clk 0:02:08.6]} 21.
Rxe5 {[%clk 0:00:55]} 21... Qd4+ {[%clk 0:02:08.8]} 22. Kh1 {[%clk 0:00:49.3]}
22... Qxf4 {[%clk 0:02:07.2]} 23. Rxe6 {[%clk 0:00:40.3]} 23... Rxe6 {[%clk
0:02:02.3]} 24. Qxe6+ {[%clk 0:00:40]} 24... Kh7 {[%clk 0:02:00.5]} 25. Rf1
{[%clk 0:00:32.5]} 25... Qd2 {[%clk 0:01:58]} 26. Qe2 {[%clk 0:00:23.4]} 26...
Qxe2 {[%clk 0:01:54.4]} 27. Nxe2 {[%clk 0:00:23.2]} 27... g5 {[%clk 0:01:53.8]}
28. Ng3 {[%clk 0:00:15.6]} 28... Kg6 {[%clk 0:01:51.7]} 29. Re1 {[%clk 0:00:15]}
29... f4 {[%clk 0:01:50.6]} 30. Nf1 {[%clk 0:00:13.1]} 30... Kf6 {[%clk
0:01:47.7]} 31. Nd2 {[%clk 0:00:13]} 31... g4 {[%clk 0:01:43.1]} 32. a5 {[%clk
0:00:12.8]} 32... b5 {[%clk 0:01:41]} 33. Ne4+ {[%clk 0:00:12.7]} 33... Kg6
{[%clk 0:01:36]} 34. Nxc5 {[%clk 0:00:12.1]} 34... Bc8 {[%clk 0:01:33.4]} 35.
Ne6 {[%clk 0:00:11.1]} 35... Rf6 {[%clk 0:01:31.5]} 36. Nc7 {[%clk 0:00:06.2]}
36... Rc6 {[%clk 0:01:29.8]} 37. Nd5 {[%clk 0:00:02.5]} 37... Rxc2 {[%clk
0:01:28.8]} 38. Ne7+ {[%clk 0:00:02.3]} 38... Kf6 {[%clk 0:01:27.4]} 39. Nxc8
{[%clk 0:00:03.2]} 39... Rxc8 {[%clk 0:01:27.3]} 40. h3 {[%clk 0:00:03.5]} 40...
h5 {[%clk 0:01:26.7]} 41. hxg4 {[%clk 0:00:03.1]} 41... hxg4 {[%clk 0:01:27.6]}
42. Re4 {[%clk 0:00:03]} 42... Kf5 {[%clk 0:01:28]} 43. Re8 {[%clk 0:00:02.6]}
43... Rxe8 {[%clk 0:01:27.7]} 0-1

[Event "*** Titled Tuesday Blitz"]
[Site "Chess.com"]
[Date "2020.11.24"]
[Round "1"]
[White "barriochess"]
[Black "Tayson_7"]
[Result "0-1"]
[WhiteElo "2359"]
[BlackElo "2681"]
[TimeControl "180+1"]
[EndTime "10:21:29 PST"]
[Termination "Tayson_7 won by resignation"]

1. d4 {[%clk 0:02:59.9]} 1... Nf6 {[%clk 0:02:52.4]} 2. c4 {[%clk 0:02:59.9]}
2... c5 {[%clk 0:02:51.9]} 3. d5 {[%clk 0:02:59.6]} 3... e6 {[%clk 0:02:51.9]}
4. Nc3 {[%clk 0:02:59.2]} 4... exd5 {[%clk 0:02:51.8]} 5. cxd5 {[%clk
0:03:00.1]} 5... d6 {[%clk 0:02:52.3]} 6. e4 {[%clk 0:03:00.3]} 6... g6 {[%clk
0:02:52.8]} 7. f4 {[%clk 0:03:00.7]} 7... Bg7 {[%clk 0:02:52.7]} 8. Nf3 {[%clk
0:03:01]} 8... O-O {[%clk 0:02:52.5]} 9. Be2 {[%clk 0:02:58.9]} 9... Bg4 {[%clk
0:02:39.4]} 10. O-O {[%clk 0:02:57.5]} 10... Re8 {[%clk 0:02:38.8]} 11. h3
{[%clk 0:02:55.9]} 11... Bxf3 {[%clk 0:02:38.6]} 12. Bxf3 {[%clk 0:02:56.5]}
12... a6 {[%clk 0:02:39.5]} 13. Re1 {[%clk 0:02:35.8]} 13... Nbd7 {[%clk
0:02:39.2]} 14. a4 {[%clk 0:02:31.5]} 14... c4 {[%clk 0:02:37.7]} 15. g4 {[%clk
0:02:28]} 15... Nc5 {[%clk 0:02:03.4]} 16. e5 {[%clk 0:02:21.3]} 16... dxe5
{[%clk 0:02:04.3]} 17. fxe5 {[%clk 0:02:21]} 17... Nfd7 {[%clk 0:02:04.8]} 18.
e6 {[%clk 0:02:12.5]} 18... Ne5 {[%clk 0:02:04.5]} 19. exf7+ {[%clk 0:01:45.7]}
19... Kxf7 {[%clk 0:02:04.2]} 20. Bg2 {[%clk 0:01:41.2]} 20... Qh4 {[%clk
0:01:50.9]} 21. Rf1+ {[%clk 0:01:40.1]} 21... Kg8 {[%clk 0:01:50.9]} 22. d6
{[%clk 0:01:37]} 22... Ned3 {[%clk 0:01:34.9]} 23. Nd5 {[%clk 0:01:01.3]} 23...
Rad8 {[%clk 0:01:23.2]} 24. Ne7+ {[%clk 0:00:52.7]} 24... Rxe7 {[%clk
0:01:19.6]} 25. dxe7 {[%clk 0:00:52]} 25... Qxe7 {[%clk 0:01:20.5]} 26. Qc2
{[%clk 0:00:48.7]} 26... b5 {[%clk 0:01:06.1]} 27. axb5 {[%clk 0:00:48.1]} 27...
axb5 {[%clk 0:01:07]} 28. Ra8 {[%clk 0:00:41.2]} 28... Rxa8 {[%clk 0:01:01.8]}
29. Bxa8 {[%clk 0:00:41]} 29... Bd4+ {[%clk 0:00:57.1]} 30. Kh1 {[%clk
0:00:38.2]} 30... Ne4 {[%clk 0:00:56.7]} 31. Bd5+ {[%clk 0:00:37.5]} 31... Kh8
{[%clk 0:00:55.7]} 32. Bxe4 {[%clk 0:00:25.7]} 32... Qxe4+ {[%clk 0:00:55.1]}
33. Qg2 {[%clk 0:00:26.6]} 33... Qxg2+ {[%clk 0:00:55.5]} 34. Kxg2 {[%clk
0:00:26.5]} 34... Nxc1 {[%clk 0:00:56.4]} 35. Rxc1 {[%clk 0:00:26.2]} 35... Bxb2
{[%clk 0:00:56.8]} 36. Rc2 {[%clk 0:00:20.8]} 36... c3 {[%clk 0:00:55.9]} 37.
Kf3 {[%clk 0:00:21]} 37... b4 {[%clk 0:00:54.8]} 0-1

[Event "*** Titled Tuesday Blitz"]
[Site "Chess.com"]
[Date "2020.11.24"]
[Round "1"]
[White "LaPorfia"]
[Black "Chesswizard_2007"]
[Result "0-1"]
[WhiteElo "2303"]
[BlackElo "2604"]
[TimeControl "180+1"]
[EndTime "10:21:31 PST"]
[Termination "Chesswizard_2007 won by resignation"]

1. d4 {[%clk 0:03:00.9]} 1... Nf6 {[%clk 0:02:29.6]} 2. Nf3 {[%clk 0:02:59.8]}
2... g6 {[%clk 0:02:29.2]} 3. Nc3 {[%clk 0:02:59.6]} 3... Bg7 {[%clk 0:02:30.1]}
4. e4 {[%clk 0:02:59.5]} 4... d6 {[%clk 0:02:30.1]} 5. h3 {[%clk 0:02:59.7]}
5... O-O {[%clk 0:02:30.3]} 6. Be3 {[%clk 0:03:00.1]} 6... a6 {[%clk 0:02:29]}
7. a4 {[%clk 0:02:59.6]} 7... Nbd7 {[%clk 0:02:26.4]} 8. Bc4 {[%clk 0:02:52.5]}
8... e5 {[%clk 0:02:15.9]} 9. dxe5 {[%clk 0:02:48.2]} 9... Nxe5 {[%clk
0:02:08.6]} 10. Nxe5 {[%clk 0:02:47.5]} 10... dxe5 {[%clk 0:02:09.5]} 11. Bc5
{[%clk 0:02:41.1]} 11... Re8 {[%clk 0:02:05.4]} 12. a5 {[%clk 0:02:33.6]} 12...
Be6 {[%clk 0:02:01.3]} 13. Bxe6 {[%clk 0:02:32.2]} 13... Rxe6 {[%clk 0:02:02.2]}
14. O-O {[%clk 0:02:28.3]} 14... Qe8 {[%clk 0:02:00.4]} 15. Qe2 {[%clk
0:02:23.5]} 15... Qc6 {[%clk 0:01:58.2]} 16. Ba3 {[%clk 0:02:13.4]} 16... Bf8
{[%clk 0:01:55.7]} 17. Rfd1 {[%clk 0:02:04.3]} 17... Bxa3 {[%clk 0:01:54.1]} 18.
Rxa3 {[%clk 0:02:03.8]} 18... Rd6 {[%clk 0:01:54.5]} 19. Rxd6 {[%clk 0:02:00.3]}
19... cxd6 {[%clk 0:01:51.8]} 20. Rb3 {[%clk 0:01:51.9]} 20... Rc8 {[%clk
0:01:50.3]} 21. Qd3 {[%clk 0:01:44.4]} 21... Qc5 {[%clk 0:01:44.3]} 22. Rxb7
{[%clk 0:01:39]} 22... Qd4 {[%clk 0:01:40.4]} 23. Qxd4 {[%clk 0:01:19.9]} 23...
exd4 {[%clk 0:01:41.3]} 24. Ne2 {[%clk 0:01:20]} 24... Rxc2 {[%clk 0:01:39]} 25.
Nxd4 {[%clk 0:01:20]} 25... Rc1+ {[%clk 0:01:39.5]} 26. Kh2 {[%clk 0:01:19.4]}
26... Nxe4 {[%clk 0:01:40.4]} 27. Rb6 {[%clk 0:01:14]} 27... h5 {[%clk
0:01:35.3]} 28. f3 {[%clk 0:01:05.2]} 28... Nd2 {[%clk 0:01:31.1]} 29. Kg3
{[%clk 0:00:45.7]} 29... Nf1+ {[%clk 0:01:06.4]} 30. Kf2 {[%clk 0:00:44.4]}
30... h4 {[%clk 0:01:05.6]} 31. b3 {[%clk 0:00:37.2]} 31... Ng3 {[%clk
0:01:03.1]} 32. Rxa6 {[%clk 0:00:34.3]} 32... f5 {[%clk 0:00:58.7]} 33. Ra7
{[%clk 0:00:31]} 33... f4 {[%clk 0:00:58.5]} 34. Ra8+ {[%clk 0:00:24.9]} 34...
Kh7 {[%clk 0:00:58.1]} 35. Ra7+ {[%clk 0:00:19.4]} 35... Kh6 {[%clk 0:00:57.6]}
0-1

[Event "*** Titled Tuesday Blitz"]
[Site "Chess.com"]
[Date "2020.11.24"]
[Round "1"]
[White "mjray79"]
[Black "platy3"]
[Result "0-1"]
[WhiteElo "2429"]
[BlackElo "2852"]
[TimeControl "180+1"]
[EndTime "10:21:33 PST"]
[Termination "platy3 won by resignation"]

1. d4 {[%clk 0:03:00.9]} 1... Nf6 {[%clk 0:02:59]} 2. c4 {[%clk 0:02:56.3]} 2...
e6 {[%clk 0:02:58.8]} 3. g3 {[%clk 0:02:54.2]} 3... d5 {[%clk 0:02:55.4]} 4. Bg2
{[%clk 0:02:53.6]} 4... Be7 {[%clk 0:02:55.9]} 5. Nf3 {[%clk 0:02:53]} 5... O-O
{[%clk 0:02:56.1]} 6. O-O {[%clk 0:02:51.7]} 6... dxc4 {[%clk 0:02:56.6]} 7. Qc2
{[%clk 0:02:51.1]} 7... a6 {[%clk 0:02:56.9]} 8. a4 {[%clk 0:02:49.9]} 8... Bd7
{[%clk 0:02:57.4]} 9. Qxc4 {[%clk 0:02:48.9]} 9... Bc6 {[%clk 0:02:57.8]} 10.
Bg5 {[%clk 0:02:39.7]} 10... Bd5 {[%clk 0:02:57.1]} 11. Qd3 {[%clk 0:02:34.8]}
11... Be4 {[%clk 0:02:55.7]} 12. Qd2 {[%clk 0:02:34.3]} 12... h6 {[%clk
0:02:55]} 13. Bf4 {[%clk 0:02:30.6]} 13... a5 {[%clk 0:02:44.9]} 14. Nc3 {[%clk
0:02:30.3]} 14... Bh7 {[%clk 0:02:45]} 15. Ne5 {[%clk 0:02:16.7]} 15... c6
{[%clk 0:02:44.6]} 16. e4 {[%clk 0:02:15.8]} 16... Bb4 {[%clk 0:02:42.4]} 17.
Qe3 {[%clk 0:02:14.3]} 17... Nbd7 {[%clk 0:02:41.3]} 18. Rfd1 {[%clk 0:02:09.3]}
18... Nxe5 {[%clk 0:02:31.4]} 19. Bxe5 {[%clk 0:01:43.3]} 19... Ng4 {[%clk
0:02:30.7]} 20. Qf4 {[%clk 0:01:43.5]} 20... Nxe5 {[%clk 0:02:31]} 21. Qxe5
{[%clk 0:01:43.9]} 21... Re8 {[%clk 0:02:13.6]} 22. Qh5 {[%clk 0:01:39.2]} 22...
Bg6 {[%clk 0:02:09.7]} 23. Qe2 {[%clk 0:01:37.3]} 23... Qb6 {[%clk 0:02:08.4]}
24. Na2 {[%clk 0:01:24.4]} 24... Bf8 {[%clk 0:02:04.3]} 25. Rac1 {[%clk
0:01:22.6]} 25... Rad8 {[%clk 0:02:04.1]} 26. Qd2 {[%clk 0:01:07.6]} 26... Bh5
{[%clk 0:01:59.8]} 27. f3 {[%clk 0:01:04.5]} 27... e5 {[%clk 0:01:59.7]} 28. Rc4
{[%clk 0:00:58.6]} 28... exd4 {[%clk 0:01:57.4]} 29. Nc1 {[%clk 0:00:48.1]}
29... f6 {[%clk 0:01:45]} 30. Kh1 {[%clk 0:00:40]} 30... Bf7 {[%clk 0:01:44.8]}
31. Rxd4 {[%clk 0:00:35.3]} 31... Rxd4 {[%clk 0:01:41.3]} 32. Qxd4 {[%clk
0:00:36.2]} 32... Bc5 {[%clk 0:01:38.8]} 33. Qd2 {[%clk 0:00:34.6]} 33... Bb4
{[%clk 0:01:37.3]} 34. Qe2 {[%clk 0:00:33.5]} 34... Rd8 {[%clk 0:01:36.4]} 35.
Nd3 {[%clk 0:00:33.5]} 35... Bc4 {[%clk 0:01:35.6]} 36. Qc2 {[%clk 0:00:28.5]}
36... Bf7 {[%clk 0:01:11.2]} 37. Nxb4 {[%clk 0:00:27.4]} 37... axb4 {[%clk
0:01:10.6]} 38. Rxd8+ {[%clk 0:00:23.2]} 38... Qxd8 {[%clk 0:01:11.5]} 39. h3
{[%clk 0:00:22.1]} 39... Qd6 {[%clk 0:01:09.1]} 40. f4 {[%clk 0:00:21.7]} 40...
Qd4 {[%clk 0:01:07.5]} 41. Qe2 {[%clk 0:00:18.9]} 41... Bc4 {[%clk 0:01:06.6]}
42. Qc2 {[%clk 0:00:15.6]} 42... b3 {[%clk 0:01:06]} 43. Qc3 {[%clk 0:00:13.1]}
43... Qxc3 {[%clk 0:01:05.9]} 44. bxc3 {[%clk 0:00:13.4]} 44... b2 {[%clk
0:01:06.8]} 0-1